[Event "Rapid Tournament (RAP)"]
[Site "Biel, Switzerland"]
[Date "2026.07.12"]
[Round "2.7"]
[White "Schwab, Felix"]
[Black "Aronyak, Ghosh"]
[Result "0-1"]
[TimeControl "15 + 5"]
[WhiteTitle "-"]
[BlackTitle "-"]
[WhiteFideId "1311450"]
[BlackFideId "25072846"]
[WhiteElo "1945"]
[BlackElo "2482"]

1. e4 {[%clk 00:15:08]} {[%emt 00:00:04]} c6 {[%clk 00:15:07]} {[%emt
00:00:01]} 2. d4 {[%clk 00:15:10]} {[%emt 00:00:02]} d5 {[%clk 00:15:10]}
{[%emt 00:00:04]} 3. e5 {[%clk 00:15:14]} Bf5 {[%clk 00:15:13]} 4. h4 {[%clk
00:15:16]} {[%emt 00:00:03]} h5 {[%clk 00:15:08]} {[%emt 00:00:10]} 5. Bd3
{[%clk 00:15:18]} {[%emt 00:00:04]} Bxd3 {[%clk 00:15:11]} {[%emt 00:00:02]} 6.
Qxd3 {[%clk 00:15:21]} {[%emt 00:00:02]} e6 {[%clk 00:15:14]} {[%emt 00:00:01]}
7. Nf3 {[%clk 00:14:40]} {[%emt 00:00:46]} c5 {[%clk 00:15:12]} {[%emt
00:00:08]} 8. dxc5 {[%clk 00:14:21]} {[%emt 00:00:24]} Bxc5 {[%clk 00:15:13]}
{[%emt 00:00:04]} 9. Nc3 {[%clk 00:13:50]} {[%emt 00:00:36]} Nc6 {[%clk
00:14:57]} {[%emt 00:00:20]} 10. a3 {[%clk 00:12:48]} {[%emt 00:01:08]} Nge7
{[%clk 00:14:21]} {[%emt 00:00:39]} 11. b4 {[%clk 00:12:27]} {[%emt 00:00:28]}
Bb6 {[%clk 00:14:21]} {[%emt 00:00:05]} 12. Nb5 {[%clk 00:12:06]} {[%emt
00:00:25]} Nf5 {[%clk 00:13:26]} {[%emt 00:01:01]} 13. Bb2 {[%clk 00:10:30]}
{[%emt 00:01:41]} a6 {[%clk 00:13:15]} {[%emt 00:00:16]} 14. Nbd4 {[%clk
00:09:25]} {[%emt 00:01:10]} Nfxd4 {[%clk 00:12:49]} {[%emt 00:00:31]} 15. Nxd4
{[%clk 00:09:04]} {[%emt 00:00:26]} Nxe5 {[%clk 00:12:38]} {[%emt 00:00:16]} 16.
Qg3 {[%clk 00:08:55]} {[%emt 00:00:13]} Ng4 {[%clk 00:12:11]} {[%emt 00:00:32]}
17. O-O-O {[%clk 00:08:20]} {[%emt 00:00:40]} Qc7 {[%clk 00:11:44]} {[%emt
00:00:32]} 18. Qf3 {[%clk 00:07:19]} {[%emt 00:01:06]} Rc8 {[%clk 00:11:30]}
{[%emt 00:00:19]} 19. Rd2 {[%clk 00:07:21]} {[%emt 00:00:03]} O-O {[%clk
00:11:16]} {[%emt 00:00:20]} 20. Re1 {[%clk 00:06:54]} {[%emt 00:00:32]} a5
{[%clk 00:10:21]} {[%emt 00:01:00]} 21. Kb1 {[%clk 00:04:59]} {[%emt 00:01:59]}
axb4 {[%clk 00:10:20]} {[%emt 00:00:07]} 22. axb4 {[%clk 00:05:01]} {[%emt
00:00:03]} Qc4 {[%clk 00:09:37]} {[%emt 00:00:48]} 23. b5 {[%clk 00:03:25]}
{[%emt 00:01:41]} Bxd4 {[%clk 00:08:51]} {[%emt 00:00:49]} 24. Bxd4 {[%clk
00:03:04]} {[%emt 00:00:27]} Qb4+ {[%clk 00:08:49]} {[%emt 00:00:08]} 25. Kc1
{[%clk 00:02:46]} {[%emt 00:00:23]} Rc4 {[%clk 00:08:50]} {[%emt 00:00:04]} 26.
Bb2 {[%clk 00:02:00]} {[%emt 00:00:51]} Rfc8 {[%clk 00:08:51]} {[%emt
00:00:04]} 27. Red1 {[%clk 00:01:24]} {[%emt 00:00:40]} Qxb5 {[%clk 00:08:35]}
{[%emt 00:00:21]} 28. Qg3 {[%clk 00:01:24]} {[%emt 00:00:04]} Rb4 {[%clk
00:08:09]} {[%emt 00:00:32]} 29. Qa3 {[%clk 00:01:06]} {[%emt 00:00:24]} Ne5
{[%clk 00:07:34]} {[%emt 00:00:39]} 30. Rd4 {[%clk 00:00:54]} {[%emt 00:00:17]}
Nc4 {[%clk 00:07:28]} {[%emt 00:00:12]} 31. Rxc4 {[%clk 00:00:35]} {[%emt
00:00:24]} Rbxc4 {[%clk 00:07:13]} {[%emt 00:00:20]} 32. Rd2 {[%clk 00:00:12]}
{[%emt 00:00:28]} Rxc2+ {[%clk 00:07:06]} {[%emt 00:00:12]} 0-1

[Event "Rapid Tournament (RAP)"]
[Site "Biel, Switzerland"]
[Date "2026.07.12"]
[Round "2.8"]
[White "Ghosh, Diptayan"]
[Black "Tcheau, Alain"]
[Result "1-0"]
[TimeControl "15 + 5"]
[WhiteTitle "-"]
[BlackTitle "-"]
[WhiteFideId "5045207"]
[BlackFideId "1306014"]
[WhiteElo "2480"]
[BlackElo "1932"]

1. Nf3 {[%clk 00:15:07]} {[%emt 00:00:03]} c6 {[%clk 00:15:09]} 2. c4 {[%clk
00:15:09]} {[%emt 00:00:03]} e6 {[%clk 00:15:13]} {[%emt 00:00:01]} 3. d4
{[%clk 00:15:11]} {[%emt 00:00:03]} d5 {[%clk 00:15:17]} 4. e3 {[%clk
00:15:15]} {[%emt 00:00:02]} Nf6 {[%clk 00:15:21]} {[%emt 00:00:01]} 5. Nc3
{[%clk 00:15:18]} {[%emt 00:00:02]} Be7 {[%clk 00:15:24]} {[%emt 00:00:01]} 6.
Bd3 {[%clk 00:15:21]} {[%emt 00:00:02]} O-O {[%clk 00:15:27]} {[%emt 00:00:02]}
7. O-O {[%clk 00:15:24]} {[%emt 00:00:02]} Re8 {[%clk 00:15:24]} {[%emt
00:00:08]} 8. e4 {[%clk 00:15:25]} {[%emt 00:00:04]} dxe4 {[%clk 00:15:23]}
{[%emt 00:00:07]} 9. Nxe4 {[%clk 00:15:27]} {[%emt 00:00:02]} Nbd7 {[%clk
00:15:26]} {[%emt 00:00:03]} 10. Qe2 {[%clk 00:15:19]} {[%emt 00:00:12]} Nxe4
{[%clk 00:15:27]} {[%emt 00:00:03]} 11. Qxe4 {[%clk 00:15:19]} {[%emt
00:00:06]} Nf6 {[%clk 00:15:31]} {[%emt 00:00:01]} 12. Qe2 {[%clk 00:15:18]}
{[%emt 00:00:06]} b6 {[%clk 00:15:22]} {[%emt 00:00:15]} 13. Bf4 {[%clk
00:15:18]} {[%emt 00:00:04]} Bb7 {[%clk 00:15:09]} {[%emt 00:00:18]} 14. Rad1
{[%clk 00:15:21]} {[%emt 00:00:02]} Bd6 {[%clk 00:15:11]} {[%emt 00:00:04]} 15.
Be5 {[%clk 00:15:02]} {[%emt 00:00:23]} Qe7 {[%clk 00:14:46]} {[%emt 00:00:30]}
16. Rfe1 {[%clk 00:14:58]} {[%emt 00:00:09]} c5 {[%clk 00:14:45]} {[%emt
00:00:06]} 17. dxc5 {[%clk 00:14:17]} {[%emt 00:00:46]} Bxe5 {[%clk 00:13:48]}
{[%emt 00:01:03]} 18. Nxe5 {[%clk 00:14:18]} {[%emt 00:00:03]} Qxc5 {[%clk
00:13:45]} {[%emt 00:00:08]} 19. a3 {[%clk 00:14:13]} {[%emt 00:00:11]} a5
{[%clk 00:13:46]} {[%emt 00:00:05]} 20. h3 {[%clk 00:14:01]} {[%emt 00:00:16]}
Rad8 {[%clk 00:13:43]} {[%emt 00:00:09]} 21. Bc2 {[%clk 00:13:52]} {[%emt
00:00:13]} Qc7 {[%clk 00:13:30]} {[%emt 00:00:18]} 22. Qe3 {[%clk 00:13:51]}
{[%emt 00:00:06]} Rxd1 {[%clk 00:13:19]} {[%emt 00:00:16]} 23. Rxd1 {[%clk
00:13:55]} {[%emt 00:00:01]} Rd8 {[%clk 00:13:22]} {[%emt 00:00:02]} 24. Rd4
{[%clk 00:13:55]} {[%emt 00:00:04]} Rd6 {[%clk 00:12:15]} {[%emt 00:01:12]} 25.
Qd2 {[%clk 00:13:36]} {[%emt 00:00:24]} Rxd4 {[%clk 00:11:28]} {[%emt
00:00:52]} 26. Qxd4 {[%clk 00:13:39]} {[%emt 00:00:02]} Ne8 {[%clk 00:11:01]}
{[%emt 00:00:32]} 27. Qd7 {[%clk 00:11:55]} {[%emt 00:01:49]} Qxd7 {[%clk
00:08:58]} {[%emt 00:02:08]} 28. Nxd7 {[%clk 00:11:58]} {[%emt 00:00:02]} Nd6
{[%clk 00:08:45]} {[%emt 00:00:18]} 29. Nxb6 {[%clk 00:11:57]} {[%emt
00:00:07]} Ba6 {[%clk 00:07:57]} {[%emt 00:00:53]} 30. c5 {[%clk 00:11:48]}
{[%emt 00:00:14]} Nc8 {[%clk 00:07:47]} {[%emt 00:00:15]} 31. Nxc8 {[%clk
00:11:32]} {[%emt 00:00:21]} Bxc8 {[%clk 00:07:50]} {[%emt 00:00:02]} 32. Kf1
{[%clk 00:11:34]} {[%emt 00:00:02]} Kf8 {[%clk 00:07:48]} {[%emt 00:00:07]} 33.
Ke2 {[%clk 00:11:38]} {[%emt 00:00:02]} h6 {[%clk 00:07:47]} {[%emt 00:00:06]}
34. Ke3 {[%clk 00:11:40]} {[%emt 00:00:03]} Ke7 {[%clk 00:07:51]} 35. b4 {[%clk
00:11:44]} {[%emt 00:00:01]} axb4 {[%clk 00:07:50]} {[%emt 00:00:05]} 36. axb4
{[%clk 00:11:48]} Kd7 {[%clk 00:07:46]} {[%emt 00:00:10]} 37. Kd4 {[%clk
00:11:51]} {[%emt 00:00:02]} Bb7 {[%clk 00:07:43]} {[%emt 00:00:08]} 38. g3
{[%clk 00:11:43]} {[%emt 00:00:12]} f6 {[%clk 00:07:27]} {[%emt 00:00:21]} 39.
f4 {[%clk 00:11:45]} {[%emt 00:00:03]} Bg2 {[%clk 00:07:26]} {[%emt 00:00:06]}
40. h4 {[%clk 00:11:49]} {[%emt 00:00:01]} Bf1 {[%clk 00:07:20]} {[%emt
00:00:12]} 41. Ba4+ {[%clk 00:11:48]} {[%emt 00:00:05]} Kc7 {[%clk 00:07:23]}
{[%emt 00:00:02]} 42. b5 {[%clk 00:11:44]} {[%emt 00:00:09]} Bg2 {[%clk
00:07:08]} {[%emt 00:00:20]} 43. b6+ {[%clk 00:11:42]} {[%emt 00:00:07]} Kb7
{[%clk 00:07:02]} {[%emt 00:00:11]} 44. Bd7 {[%clk 00:11:43]} {[%emt 00:00:04]}
Bh3 {[%clk 00:06:53]} {[%emt 00:00:14]} 45. Kc3 {[%clk 00:11:42]} {[%emt
00:00:07]} Bg4 {[%clk 00:06:49]} {[%emt 00:00:09]} 46. Kb4 {[%clk 00:11:45]}
{[%emt 00:00:01]} Bf3 {[%clk 00:05:44]} {[%emt 00:01:10]} 47. Bxe6 {[%clk
00:11:47]} {[%emt 00:00:03]} Bc6 {[%clk 00:05:42]} {[%emt 00:00:07]} 48. Kc4
{[%clk 00:11:49]} {[%emt 00:00:03]} Be8 {[%clk 00:05:31]} {[%emt 00:00:17]} 49.
Kd5 {[%clk 00:11:47]} {[%emt 00:00:07]} Ba4 {[%clk 00:05:26]} {[%emt 00:00:10]}
50. Kd6 {[%clk 00:11:50]} {[%emt 00:00:02]} 1-0

[Event "Rapid Tournament (RAP)"]
[Site "Biel, Switzerland"]
[Date "2026.07.12"]
[Round "2.9"]
[White "Hashem, Khaled"]
[Black "Acs, Peter"]
[Result "0-1"]
[TimeControl "15 + 5"]
[WhiteTitle "-"]
[BlackTitle "-"]
[WhiteFideId "10300201"]
[BlackFideId "708020"]
[WhiteElo "1926"]
[BlackElo "2474"]

1. d4 {[%clk 00:15:09]} Nf6 {[%clk 00:15:07]} {[%emt 00:00:03]} 2. c4 {[%clk
00:15:13]} g6 {[%clk 00:15:04]} {[%emt 00:00:09]} 3. Nc3 {[%clk 00:15:16]}
{[%emt 00:00:01]} Bg7 {[%clk 00:15:05]} {[%emt 00:00:04]} 4. e4 {[%clk
00:15:19]} {[%emt 00:00:02]} d6 {[%clk 00:15:06]} {[%emt 00:00:05]} 5. f3
{[%clk 00:15:18]} {[%emt 00:00:06]} O-O {[%clk 00:15:01]} {[%emt 00:00:09]} 6.
Nge2 {[%clk 00:15:21]} {[%emt 00:00:02]} a6 {[%clk 00:14:34]} {[%emt 00:00:33]}
7. Be3 {[%clk 00:15:23]} {[%emt 00:00:02]} c6 {[%clk 00:14:29]} {[%emt
00:00:10]} 8. Qd2 {[%clk 00:15:25]} {[%emt 00:00:03]} b5 {[%clk 00:14:12]}
{[%emt 00:00:22]} 9. b3 {[%clk 00:12:17]} {[%emt 00:03:13]} Nbd7 {[%clk
00:13:43]} {[%emt 00:00:34]} 10. Rd1 {[%clk 00:12:15]} {[%emt 00:00:07]} Qc7
{[%clk 00:13:08]} {[%emt 00:00:40]} 11. Bh6 {[%clk 00:11:39]} {[%emt 00:00:42]}
b4 {[%clk 00:10:34]} {[%emt 00:02:39]} 12. Na4 {[%clk 00:10:22]} {[%emt
00:01:22]} c5 {[%clk 00:10:37]} {[%emt 00:00:02]} 13. d5 {[%clk 00:08:25]}
{[%emt 00:02:01]} Ne5 {[%clk 00:09:45]} {[%emt 00:00:56]} 14. Ng3 {[%clk
00:07:41]} {[%emt 00:00:50]} Re8 {[%clk 00:08:46]} {[%emt 00:01:05]} 15. Be2
{[%clk 00:06:54]} {[%emt 00:00:51]} Bh8 {[%clk 00:08:13]} {[%emt 00:00:39]} 16.
O-O {[%clk 00:06:12]} {[%emt 00:00:47]} e6 {[%clk 00:07:46]} {[%emt 00:00:31]}
17. dxe6 {[%clk 00:04:28]} {[%emt 00:01:49]} Rxe6 {[%clk 00:07:47]} {[%emt
00:00:05]} 18. h3 {[%clk 00:04:08]} {[%emt 00:00:25]} Nc6 {[%clk 00:06:50]}
{[%emt 00:01:00]} 19. Nb2 {[%clk 00:02:56]} {[%emt 00:01:18]} Nd4 {[%clk
00:05:51]} {[%emt 00:01:04]} 20. Nd3 {[%clk 00:02:59]} {[%emt 00:00:03]} Bb7
{[%clk 00:05:38]} {[%emt 00:00:18]} 21. Nf4 {[%clk 00:02:47]} {[%emt 00:00:17]}
Ree8 {[%clk 00:05:35]} {[%emt 00:00:07]} 22. Bd3 {[%clk 00:02:28]} {[%emt
00:00:25]} a5 {[%clk 00:05:30]} {[%emt 00:00:10]} 23. Nge2 {[%clk 00:02:08]}
{[%emt 00:00:25]} Nd7 {[%clk 00:04:23]} {[%emt 00:01:11]} 24. Nd5 {[%clk
00:01:40]} {[%emt 00:00:33]} Bxd5 {[%clk 00:04:21]} {[%emt 00:00:07]} 25. cxd5
{[%clk 00:01:44]} {[%emt 00:00:01]} a4 {[%clk 00:03:38]} {[%emt 00:00:48]} 26.
Nxd4 {[%clk 00:01:41]} {[%emt 00:00:08]} Bxd4+ {[%clk 00:03:40]} {[%emt
00:00:03]} 27. Be3 {[%clk 00:01:45]} Bxe3+ {[%clk 00:03:18]} {[%emt 00:00:27]}
28. Qxe3 {[%clk 00:01:49]} {[%emt 00:00:01]} Qb7 {[%clk 00:03:04]} {[%emt
00:00:19]} 29. Qe2 {[%clk 00:01:13]} {[%emt 00:00:41]} axb3 {[%clk 00:02:57]}
{[%emt 00:00:12]} 30. axb3 {[%clk 00:01:17]} {[%emt 00:00:01]} Ra3 {[%clk
00:02:56]} {[%emt 00:00:06]} 31. Bb5 {[%clk 00:01:07]} {[%emt 00:00:16]} Rxb3
{[%clk 00:02:34]} {[%emt 00:00:27]} 32. Ra1 {[%clk 00:01:10]} Rb8 {[%clk
00:01:39]} {[%emt 00:00:59]} 33. Bc6 {[%clk 00:00:54]} {[%emt 00:00:22]} Qc7
{[%clk 00:01:43]} {[%emt 00:00:01]} 34. Ra6 {[%clk 00:00:43]} {[%emt 00:00:16]}
Ne5 {[%clk 00:01:08]} {[%emt 00:00:40]} 35. Rfa1 {[%clk 00:00:44]} {[%emt
00:00:04]} c4 {[%clk 00:01:10]} {[%emt 00:00:04]} 36. Ba4 {[%clk 00:00:17]}
{[%emt 00:00:32]} Ra3 {[%clk 00:00:57]} {[%emt 00:00:18]} 37. Rxa3 {[%clk
00:00:11]} {[%emt 00:00:11]} bxa3 {[%clk 00:01:00]} {[%emt 00:00:02]} 38. f4
{[%clk 00:00:13]} {[%emt 00:00:03]} Nd3 {[%clk 00:00:58]} {[%emt 00:00:07]} 39.
Bc2 {[%clk 00:00:16]} {[%emt 00:00:02]} Nb4 {[%clk 00:00:47]} {[%emt 00:00:15]}
40. Rxa3 {[%clk 00:00:16]} {[%emt 00:00:05]} Nxc2 {[%clk 00:00:50]} {[%emt
00:00:02]} 41. Qxc2 {[%clk 00:00:20]} {[%emt 00:00:01]} Qc5+ {[%clk 00:00:54]}
{[%emt 00:00:01]} 0-1

[Event "Rapid Tournament (RAP)"]
[Site "Biel, Switzerland"]
[Date "2026.07.12"]
[Round "2.10"]
[White "Gopal, G.N."]
[Black "Pinson, Clement"]
[Result "1-0"]
[TimeControl "15 + 5"]
[WhiteTitle "-"]
[BlackTitle "-"]
[WhiteFideId "5015693"]
[BlackFideId "26098660"]
[WhiteElo "2471"]
[BlackElo "1924"]

1. e4 {[%clk 00:15:08]} {[%emt 00:00:03]} e5 {[%clk 00:15:09]} 2. Nf3 {[%clk
00:15:12]} {[%emt 00:00:01]} Nc6 {[%clk 00:15:13]} {[%emt 00:00:01]} 3. Bb5
{[%clk 00:15:15]} {[%emt 00:00:02]} a6 {[%clk 00:15:17]} {[%emt 00:00:03]} 4.
Ba4 {[%clk 00:15:19]} Nf6 {[%clk 00:15:21]} 5. O-O {[%clk 00:15:23]} {[%emt
00:00:02]} Be7 {[%clk 00:15:24]} {[%emt 00:00:01]} 6. d3 {[%clk 00:15:27]} b5
{[%clk 00:15:28]} {[%emt 00:00:01]} 7. Bb3 {[%clk 00:15:31]} d6 {[%clk
00:15:29]} {[%emt 00:00:04]} 8. c3 {[%clk 00:15:23]} {[%emt 00:00:13]} Na5
{[%clk 00:15:23]} {[%emt 00:00:11]} 9. Bc2 {[%clk 00:15:27]} c5 {[%clk
00:15:26]} {[%emt 00:00:02]} 10. d4 {[%clk 00:14:47]} {[%emt 00:00:45]} cxd4
{[%clk 00:15:27]} {[%emt 00:00:02]} 11. cxd4 {[%clk 00:14:52]} Qc7 {[%clk
00:15:28]} {[%emt 00:00:07]} 12. Nc3 {[%clk 00:13:53]} {[%emt 00:01:03]} O-O
{[%clk 00:15:24]} {[%emt 00:00:09]} 13. h3 {[%clk 00:10:52]} {[%emt 00:03:07]}
Be6 {[%clk 00:15:07]} {[%emt 00:00:21]} 14. Re1 {[%clk 00:10:20]} {[%emt
00:00:37]} Rfc8 {[%clk 00:15:06]} {[%emt 00:00:06]} 15. a3 {[%clk 00:10:19]}
{[%emt 00:00:06]} h6 {[%clk 00:14:18]} {[%emt 00:00:53]} 16. Bd3 {[%clk
00:10:05]} {[%emt 00:00:19]} Bb3 {[%clk 00:14:00]} {[%emt 00:00:23]} 17. Qe2
{[%clk 00:09:58]} {[%emt 00:00:12]} Bc4 {[%clk 00:13:56]} {[%emt 00:00:09]} 18.
Be3 {[%clk 00:09:42]} {[%emt 00:00:22]} Bxd3 {[%clk 00:13:19]} {[%emt
00:00:41]} 19. Qxd3 {[%clk 00:09:45]} Nc4 {[%clk 00:13:21]} {[%emt 00:00:04]}
20. Bc1 {[%clk 00:09:36]} {[%emt 00:00:15]} exd4 {[%clk 00:12:39]} {[%emt
00:00:45]} 21. Nxd4 {[%clk 00:09:34]} {[%emt 00:00:08]} Bf8 {[%clk 00:12:02]}
{[%emt 00:00:43]} 22. Nf5 {[%clk 00:09:02]} {[%emt 00:00:36]} d5 {[%clk
00:11:35]} {[%emt 00:00:32]} 23. exd5 {[%clk 00:07:51]} {[%emt 00:01:17]} Re8
{[%clk 00:11:26]} {[%emt 00:00:14]} 24. Rd1 {[%clk 00:06:37]} {[%emt 00:01:19]}
Qe5 {[%clk 00:11:19]} {[%emt 00:00:12]} 25. Qf3 {[%clk 00:05:15]} {[%emt
00:01:27]} g6 {[%clk 00:10:21]} {[%emt 00:01:03]} 26. Nxh6+ {[%clk 00:04:10]}
{[%emt 00:01:10]} Bxh6 {[%clk 00:09:53]} {[%emt 00:00:32]} 27. Bxh6 {[%clk
00:04:14]} Nxb2 {[%clk 00:09:19]} {[%emt 00:00:40]} 28. Bf4 {[%clk 00:04:01]}
{[%emt 00:00:19]} Qf5 {[%clk 00:08:55]} {[%emt 00:00:29]} 29. g4 {[%clk
00:04:00]} {[%emt 00:00:06]} Qd7 {[%clk 00:08:35]} {[%emt 00:00:24]} 30. Rd4
{[%clk 00:03:47]} {[%emt 00:00:17]} Nc4 {[%clk 00:08:03]} {[%emt 00:00:38]} 31.
d6 {[%clk 00:03:49]} {[%emt 00:00:04]} Rac8 {[%clk 00:07:49]} {[%emt 00:00:18]}
32. Nd5 {[%clk 00:02:30]} {[%emt 00:01:23]} Nxd5 {[%clk 00:07:46]} {[%emt
00:00:09]} 33. Rxd5 {[%clk 00:02:34]} {[%emt 00:00:02]} Re6 {[%clk 00:07:19]}
{[%emt 00:00:31]} 34. Rad1 {[%clk 00:02:15]} {[%emt 00:00:25]} Rce8 {[%clk
00:07:17]} {[%emt 00:00:06]} 35. h4 {[%clk 00:01:50]} {[%emt 00:00:30]} Re4
{[%clk 00:06:23]} {[%emt 00:00:59]} 36. R5d4 {[%clk 00:01:39]} {[%emt
00:00:17]} R4e6 {[%clk 00:05:59]} {[%emt 00:00:28]} 37. Bg3 {[%clk 00:01:19]}
{[%emt 00:00:25]} Kg7 {[%clk 00:05:42]} {[%emt 00:00:23]} 38. h5 {[%clk
00:01:17]} {[%emt 00:00:07]} Ne5 {[%clk 00:05:15]} {[%emt 00:00:32]} 39. Qd5
{[%clk 00:01:08]} {[%emt 00:00:13]} Nxg4 {[%clk 00:04:43]} {[%emt 00:00:37]} 40.
Rxg4 {[%clk 00:00:30]} {[%emt 00:00:44]} Re1+ {[%clk 00:04:47]} {[%emt
00:00:01]} 41. Rxe1 {[%clk 00:00:33]} {[%emt 00:00:02]} Rxe1+ {[%clk 00:04:51]}
{[%emt 00:00:01]} 42. Kh2 {[%clk 00:00:10]} {[%emt 00:00:28]} Qxg4 {[%clk
00:04:49]} {[%emt 00:00:06]} 43. d7 {[%clk 00:00:14]} {[%emt 00:00:01]} Rd1
{[%clk 00:03:24]} {[%emt 00:01:30]} 44. d8=Q {[%clk 00:00:18]} {[%emt
00:00:02]} Rxd5 {[%clk 00:03:17]} {[%emt 00:00:12]} 45. Qxd5 {[%clk 00:00:22]}
gxh5 {[%clk 00:02:57]} {[%emt 00:00:24]} 46. f3 {[%clk 00:00:25]} {[%emt
00:00:02]} Qg6 {[%clk 00:02:37]} {[%emt 00:00:25]} 47. Kh3 {[%clk 00:00:21]}
{[%emt 00:00:09]} a5 {[%clk 00:02:17]} {[%emt 00:00:25]} 48. Qxb5 {[%clk
00:00:13]} {[%emt 00:00:13]} Qe6+ {[%clk 00:02:21]} 49. Kh4 {[%clk 00:00:15]}
{[%emt 00:00:03]} 1-0

[Event "Rapid Tournament (RAP)"]
[Site "Biel, Switzerland"]
[Date "2026.07.12"]
[Round "2.11"]
[White "Wilhelm, Serge"]
[Black "Arjun, Kalyan"]
[Result "0-1"]
[TimeControl "15 + 5"]
[WhiteTitle "-"]
[BlackTitle "-"]
[WhiteFideId "1305808"]
[BlackFideId "35018701"]
[WhiteElo "1923"]
[BlackElo "2390"]

1. Nf3 {[%clk 00:15:05]} {[%emt 00:00:01]} d5 {[%clk 00:15:04]} {[%emt
00:00:02]} 2. g3 {[%clk 00:15:05]} Bg4 {[%clk 00:14:59]} {[%emt 00:00:13]} 3.
Bg2 {[%clk 00:15:05]} {[%emt 00:00:04]} c6 {[%clk 00:14:59]} {[%emt 00:00:05]}
4. d3 {[%clk 00:15:05]} {[%emt 00:00:02]} Nd7 {[%clk 00:14:56]} {[%emt
00:00:07]} 5. Nbd2 {[%clk 00:15:05]} {[%emt 00:00:03]} Ngf6 {[%clk 00:14:54]}
{[%emt 00:00:08]} 6. h3 {[%clk 00:14:41]} {[%emt 00:00:29]} Bh5 {[%clk
00:14:54]} {[%emt 00:00:02]} 7. O-O {[%clk 00:14:33]} {[%emt 00:00:14]} e5
{[%clk 00:14:48]} {[%emt 00:00:11]} 8. e4 {[%clk 00:14:27]} {[%emt 00:00:11]}
Be7 {[%clk 00:14:48]} {[%emt 00:00:03]} 9. Re1 {[%clk 00:13:48]} {[%emt
00:00:44]} O-O {[%clk 00:14:39]} {[%emt 00:00:14]} 10. c3 {[%clk 00:13:15]}
{[%emt 00:00:38]} Re8 {[%clk 00:14:14]} {[%emt 00:00:30]} 11. Qc2 {[%clk
00:13:11]} {[%emt 00:00:08]} Bf8 {[%clk 00:14:05]} {[%emt 00:00:14]} 12. Nf1
{[%clk 00:13:04]} {[%emt 00:00:12]} dxe4 {[%clk 00:13:29]} {[%emt 00:00:41]} 13.
dxe4 {[%clk 00:13:04]} {[%emt 00:00:06]} Nc5 {[%clk 00:13:29]} {[%emt
00:00:02]} 14. Nh4 {[%clk 00:12:16]} {[%emt 00:00:52]} Qd3 {[%clk 00:12:17]}
{[%emt 00:01:18]} 15. Qxd3 {[%clk 00:11:55]} {[%emt 00:00:27]} Nxd3 {[%emt
00:00:13]} 16. Re3 {[%clk 00:11:49]} Rad8 {[%clk 00:11:59]} {[%emt 00:00:23]}
17. g4 {[%clk 00:11:07]} {[%emt 00:00:48]} Bg6 {[%clk 00:11:59]} {[%emt
00:00:02]} 18. Nxg6 {[%clk 00:11:07]} {[%emt 00:00:05]} hxg6 {[%clk 00:11:59]}
{[%emt 00:00:01]} 19. Re2 {[%clk 00:10:42]} {[%emt 00:00:30]} Bc5 {[%clk
00:10:07]} {[%emt 00:01:57]} 20. Be3 {[%clk 00:10:01]} {[%emt 00:00:46]} Bxe3
{[%clk 00:09:50]} {[%emt 00:00:21]} 21. Nxe3 {[%clk 00:10:01]} {[%emt
00:00:03]} Nf4 {[%clk 00:09:19]} {[%emt 00:00:36]} 22. Rc2 {[%clk 00:09:50]}
{[%emt 00:00:14]} Nxg2 {[%clk 00:09:14]} {[%emt 00:00:11]} 23. Kxg2 {[%clk
00:09:47]} {[%emt 00:00:10]} Nxe4 {[%clk 00:09:14]} {[%emt 00:00:04]} 24. a4
{[%clk 00:09:35]} {[%emt 00:00:18]} f6 {[%clk 00:08:53]} {[%emt 00:00:26]} 25.
a5 {[%clk 00:09:24]} {[%emt 00:00:16]} Nc5 {[%clk 00:08:40]} {[%emt 00:00:17]}
26. b4 {[%clk 00:09:13]} {[%emt 00:00:16]} Ne6 {[%clk 00:08:40]} {[%emt
00:00:01]} 27. a6 {[%clk 00:08:49]} {[%emt 00:00:30]} b6 {[%clk 00:08:04]}
{[%emt 00:00:41]} 28. Nc4 {[%clk 00:07:58]} {[%emt 00:00:56]} Nf4+ {[%clk
00:08:01]} {[%emt 00:00:08]} 29. Kh2 {[%clk 00:07:23]} {[%emt 00:00:39]} Rd3
{[%clk 00:08:00]} {[%emt 00:00:06]} 30. Ne3 {[%clk 00:07:07]} {[%emt 00:00:22]}
Kf7 {[%clk 00:07:56]} {[%emt 00:00:09]} 31. Rd1 {[%clk 00:06:02]} {[%emt
00:01:09]} Rxd1 {[%clk 00:07:55]} {[%emt 00:00:07]} 32. Nxd1 {[%clk 00:06:02]}
{[%emt 00:00:01]} Rh8 {[%clk 00:07:55]} {[%emt 00:00:02]} 33. Rd2 {[%clk
00:05:34]} {[%emt 00:00:33]} Rxh3+ {[%clk 00:07:55]} {[%emt 00:00:05]} 34. Kg1
{[%clk 00:05:34]} {[%emt 00:00:02]} Ke6 {[%clk 00:06:51]} {[%emt 00:01:09]} 35.
Ne3 {[%clk 00:05:19]} {[%emt 00:00:20]} Nd5 {[%clk 00:06:46]} {[%emt 00:00:10]}
36. Kg2 {[%clk 00:04:48]} {[%emt 00:00:35]} Rh8 {[%clk 00:06:36]} {[%emt
00:00:15]} 37. Nd1 {[%clk 00:04:34]} {[%emt 00:00:20]} f5 {[%clk 00:06:16]}
{[%emt 00:00:25]} 38. Kg3 {[%clk 00:04:05]} {[%emt 00:00:34]} e4 {[%clk
00:06:03]} {[%emt 00:00:18]} 39. Rb2 {[%clk 00:03:24]} {[%emt 00:00:46]} f4+
{[%clk 00:05:59]} {[%emt 00:00:10]} 40. Kg2 {[%clk 00:03:24]} {[%emt 00:00:03]}
f3+ {[%clk 00:05:44]} {[%emt 00:00:20]} 41. Kg1 {[%clk 00:03:06]} {[%emt
00:00:22]} Nf4 {[%clk 00:05:44]} {[%emt 00:00:02]} 0-1